[Event "1000 GM Labor Day Super Swiss 2024"]
[Site "San Jose"]
[Date "2024.09.02"]
[Round "6.20"]
[White "Biyiasas, Theodore"]
[Black "Alfaro, William"]
[Result "1-0"]
[Annotator "TA"]
[ECO "E10"]
[WhiteElo "1973"]
[BlackElo "2137"]
[PlyCount "104"]
[EventDate "2024.08.30"]
[EventType "swiss"]
[EventCountry "USA"]
[SourceTitle "playchess.com"]
[Source "ChessBase"]
[SourceQuality "1"]
[TimeControl "5400+30"]

{[%evp 10,104,51,60,66,47,77,58,91,73,80,85,81,91,85,80,89,75,77,91,78,83,181,179,175,160,236,241,247,217,351,373,373,378,376,372,371,371,402,405,422,419,443,421,587,575,550,506,483,422,414,406,660,620,671,668,638,620,625,618,794,786,908,901,910,859,1623,852,850,848,837,832,830,830,789,778,1732,1764,1845,1756,1812,1818,1664,1622,1676,1490,1744,1577,4802,1387,29981,29982,29979,29978,29978,29979,29989]} 1. d4 {[%emt 0:00:03]} Nf6 {[%emt 0:16:04]} 2. c4 {[%emt 0:00:09]} c5 {[%emt 0:00:07]} 3. d5 {[%emt 0:00:18]} e6 {[%emt 0:00:28]} 4. Nf3 {[%emt 0:00:39]} exd5 {[%emt 0:00:21]} 5. cxd5 {[%emt 0:00:10]} d6 {[%emt 0:02:00] [#]} 6. e4 $1 {[%emt 0:00:58]} a6 {[%emt 0:01:41][%cal Og7g6]} (6... g6 7. h3) 7. Bd3 {[%emt 0:01:56]} g6 {[%emt 0:02:08]} 8. O-O {[%emt 0:01:39]} Bg7 {[%emt 0:00:03] White is slightly better.} 9. h3 {[%emt 0:00:49]} b5 {[%emt 0:05:49]} 10. a4 {[%emt 0:02:55]} b4 {[%emt 0:00:11]} 11. Nbd2 {[%emt 0:10:29]} O-O {[%emt 0:00:09]} 12. Nc4 {[%emt 0:04:55]} a5 {[%emt 0:00:06]} 13. Bf4 $36 {[%emt 0:00:30][%mdl 2048] Keeping Black busy.} Ne8 {[%emt 0:00:30]} 14. Qc2 {[%emt 0:00:30]} Ba6 {[%emt 0:00:30]} 15. Rad1 {[%emt 0:00:30] White is much more active.} b3 {[%emt 0:00:30]} 16. Qxb3 $18 {[%emt 0:00:30]} Bxc4 {[%emt 0:00:30]} 17. Bxc4 {[%emt 0:00:30]} Na6 {[%emt 0:00:30]} (17... Nd7 $16 18. Bb5 Qe7) 18. e5 {[%emt 0:00:30] Black is weak on the light squares} Rb8 {[%emt 0:00:30]} 19. Qe3 {[%emt 0:00:30]} Nac7 {[%emt 0:00:30]} (19... Nb4 {is a better defense.} 20. e6 fxe6 21. dxe6 Qe7) 20. b3 {[%emt 0:00:30]} Rb4 {[%emt 0:00:30]} 21. exd6 {[%emt 0:00:30]} Nxd6 {[%emt 0:00:30]} 22. Qxc5 {[%emt 0:00:30]} Nce8 {[%emt 0:00:30]} 23. Rfe1 {[%emt 0:00:30] Inhibits Ne4.} Nb7 {[%emt 0:00:30]} 24. Qe3 {[%emt 0:00:30]} Ned6 {[%emt 0:00:30]} 25. Ne5 {[%emt 0:00:30]} Bxe5 {[%emt 0:00:30]} 26. Qxe5 {[%emt 0:00:30]} Qd7 {[%emt 0:00:30]} 27. Qf6 {[%emt 0:00:30] Be5 would kill now.} Qf5 {[%emt 0:00:30]} 28. Qxf5 {[%emt 0:00:30]} gxf5 {[%emt 0:00:30]} 29. Bd2 {[%emt 0:00:30][%cal Bf4d2,Bd2e3,Be3d4][%mdl 32]} Rb6 {[%emt 0:00:30]} 30. Be3 {[%emt 0:00:30]} Nxc4 {[%emt 0:00:30]} (30... Rb4 $142 31. Bd2 Rb6) 31. bxc4 {[%emt 0:00:30]} Rb4 {[%emt 0:00:30]} 32. Rb1 {[%emt 0:59:44]} Rc8 {[%emt 0:35:12]} 33. Rxb4 {[%emt 0:00:30]} axb4 {[%emt 0:00:30][%cal Ba5b4,Bb4b3][%mdl 4128] Endgame. KRB-KRN} 34. Bd4 {[%emt 0:00:30]} h5 {[%emt 0:00:30] [#]} 35. c5 {[%emt 0:00:30]} Nxc5 {[%emt 0:00:30]} (35... Na5 36. c6) 36. Rc1 {[%emt 0:00:30]} b3 {[%emt 0:00:30]} 37. d6 {[%emt 0:00:30]} (37. Rxc5 $2 Rxc5 38. Bxc5 b2 $19) 37... Kh7 {[%emt 0:00:30]} 38. d7 {[%emt 0:00:30]} (38. Rxc5 $2 {perishes.} Rxc5 39. Kf1 (39. Bxc5 $2 {loses.} b2 $19) 39... Rd5 $19) 38... Rd8 {[%emt 0:00:30]} 39. Bxc5 {[%emt 0:00:30]} Rxd7 {[%emt 0:00:48] KRB-KR} 40. Rb1 {[%emt 0:08:19]} Rc7 {[%emt 0:00:25]} 41. Bb6 {[%emt 0:00:20]} Rc4 {[%emt 0:00:38]} 42. a5 {[%emt 0:01:53][%cal Oa5a6] Hoping for a6!} Rb4 {[%emt 0:00:03]} 43. Kf1 {[%emt 0:00:24]} f4 {[%emt 0:00:04]} 44. Ke2 {[%emt 0:00:13]} f3+ {[%emt 0:00:05]} 45. Kxf3 {[%emt 0:00:08]} Kg6 {[%emt 0:00:20]} 46. g3 {[%emt 0:00:38]} Kf5 {[%emt 0:00:04]} 47. Ke3 {[%emt 0:00:08]} h4 {[%emt 0:01:13]} 48. gxh4 {[%emt 0:00:11]} Rxh4 {[%emt 0:00:03]} 49. Rxb3 {[%emt 0:00:15]} Rxh3+ {[%emt 0:00:01]} 50. f3 {[%emt 0:00:01] White mates.} Rh1 {[%emt 0:00:00]} 51. Ra3 {[%emt 0:00:29]} Rb1 {[%emt 0:00:00] [#]} 52. a6 $1 {[%emt 0:01:36]} Ke5 {[%emt 0:35:57] Weighted Error Value: White=0.11 (very precise) /Black=0.39.  Mistake:       	---       	Black=4      Inaccurate:     	---       	Black=3      OK:         	White=14    	Black=10} (52... Rxb6 53. a7) 1-0

[Event "1000 GM Labor Day Super Swiss 2024"]
[Site "San Jose"]
[Date "2024.09.02"]
[Round "6.21"]
[White "Harish, Neeraj"]
[Black "Angeles Mercado, Anthony R"]
[Result "1/2-1/2"]
[Annotator "TA"]
[ECO "B48"]
[WhiteElo "2101"]
[BlackElo "2083"]
[PlyCount "88"]
[EventDate "2024.08.30"]
[EventType "swiss"]
[EventCountry "USA"]
[SourceTitle "playchess.com"]
[Source "ChessBase"]
[SourceQuality "1"]
[TimeControl "5400+30"]

{[%evp 11,88,30,29,0,29,17,62,63,128,132,124,111,117,124,107,110,156,156,154,137,129,128,159,147,197,134,165,156,162,128,132,127,134,129,139,128,140,145,139,76,78,86,93,103,100,93,81,90,77,85,81,27,27,8,8,8,24,8,8,8,8,7,7,7,7,0,0,0,0,0,0,0,0,0,0,0,0,0,0]} 1. e4 {[%emt 0:00:02]} c5 {[%emt 0:08:52]} 2. Nf3 {[%emt 0:00:07]} Nc6 {[%emt 0:01:16]} 3. d4 {[%emt 0:00:08]} cxd4 {[%emt 0:00:05]} 4. Nxd4 {[%emt 0:00:05]} e6 {[%emt 0:01:06]} 5. Nc3 {[%emt 0:00:09]} Qc7 {[%emt 0:00:10]} 6. Be3 {[%emt 0:00:07]} a6 {[%emt 0:00:13]} 7. g4 {[%emt 0:00:42]} Bb4 {[%emt 0:10:48]} 8. Nxc6 {[%emt 0:01:23]} dxc6 {[%emt 0:11:47]} 9. Qd4 {[%emt 0:02:18][%csl LRb4,LRg7] White is slightly better.} Bxc3+ {[%emt 0:13:19]} (9... Be7 $14) 10. Qxc3 $16 {[%emt 0:00:31]} e5 {[%emt 0:00:55]} 11. Be2 {[%emt 0:02:18]} Be6 {[%emt 0:08:42]} 12. O-O-O $36 {[%emt 0:01:47][%mdl 2048] Keeping Black busy.} Nf6 {[%emt 0:00:59]} 13. f3 {[%emt 0:03:36]} h5 {[%emt 0:04:59]} (13... O-O $142) 14. g5 {[%emt 0:13:50]} Nd7 {[%emt 0:00:23]} 15. Kb1 {[%emt 0:00:56]} O-O-O {[%emt 0:01:44]} 16. a4 {[%emt 0:01:43]} a5 {[%emt 0:03:46]} 17. Rhf1 {[%emt 0:02:32] White has more active pieces.} Rde8 {[%emt 0:06:17]} (17... Rhe8 $16 18. Rd2 h4) 18. Bd2 {[%emt 0:08:57]} (18. Rd2 $18) 18... b6 {[%emt 0:00:56]} 19. Be3 {[%emt 0:00:16]} Kb7 {[%emt 0:01:40]} 20. f4 {[%emt 0:04:02] [#] And now f5 would win.} Bg4 {[%emt 0:01:23]} 21. Bxg4 {[%emt 0:02:33]} hxg4 {[%emt 0:00:04]} 22. Qd2 {[%emt 0:06:10]} Re7 {[%emt 0:02:16]} 23. Qe2 {[%emt 0:01:58]} exf4 {[%emt 0:00:41]} 24. Bxf4 {[%emt 0:00:12]} Ne5 {[%emt 0:00:35]} 25. Bxe5 {[%emt 0:02:34]} (25. Rd2 $142) 25... Qxe5 {[%emt 0:00:38]} 26. Qxg4 {[%emt 0:00:18] Hoping for Rd7+.} Qxe4 {[%emt 0:10:14]} (26... Rxh2 $2 {perishes.} 27. Rd7+ Ka6 28. Rxe7 (28. Rxf7 Qc5 $16) 28... Qxe7 29. Qc8+ Qb7 30. Qe8 $18 (30. Qxb7+ Kxb7 31. Rxf7+ Ka6 $18)) 27. Qxe4 {[%emt 0:00:36]} Rxe4 {[%emt 0:00:02]} 28. Rxf7+ {[%emt 0:00:11][%mdl 4096] Endgame. KRR-KRR} Ka6 {[%emt 0:00:09]} 29. b3 {[%emt 0:01:45] [#] aiming for Rd6.} b5 {[%emt 0:00:49]} 30. axb5+ {[%emt 0:00:54]} Kxb5 {[%emt 0:00:11]} 31. Rxg7 {[%emt 0:01:24]} (31. Rd2 $16) 31... Rxh2 $11 {[%emt 0:00:21]} 32. Rd3 {[%emt 0:00:59]} Rg2 {[%emt 0:04:17]} 33. Rc3 {[%emt 0:01:16] With the idea Rb7+.} c5 {[%emt 0:02:24]} 34. g6 {[%emt 0:06:51]} Re6 {[%emt 0:00:34] The position is equal.} 35. Rb7+ {[%emt 0:03:25]} Rb6 {[%emt 0:00:05]} 36. Rxb6+ {[%emt 0:01:10]} Kxb6 {[%emt 0:00:06] KR-KR} 37. Rf3 {[%emt 0:00:06]} Rxg6 {[%emt 0:00:07]} 38. c4 {[%emt 0:00:06]} a4 {[%emt 0:01:31]} 39. bxa4 {[%emt 0:00:35]} Ka5 {[%emt 0:00:12]} 40. Rb3 {[%emt 0:00:40]} Kxa4 {[%emt 0:00:30]} 41. Rb5 {[%emt 0:00:06]} Rg4 {[%emt 0:00:56]} 42. Rxc5 {[%emt 0:00:06]} Kb4 {[%emt 0:00:04]} 43. Rc8 {[%emt 0:00:05]} Rxc4 {[%emt 0:00:12]} 44. Rxc4+ {[%emt 0:00:04]} Kxc4 {[%emt 0:00:09] Blacks defense is rewarded with a draw.   Weighted Error Value: White=0.10 (very precise) /Black=0.10 (very precise) .  Mistake:       	White=3     	Black=3      Inaccurate:     	---       	Black=2      OK:         	White=17    	Black=10     Best:        	White=2     	Black=7} 1/2-1/2

[Event "1000 GM Labor Day Super Swiss 2024"]
[Site "San Jose"]
[Date "2024.09.02"]
[Round "6.22"]
[White "Ubaldo Suarez, Maria Gisela"]
[Black "Champsi, Imran"]
[Result "1/2-1/2"]
[Annotator "TA"]
[ECO "D18"]
[WhiteElo "1958"]
[BlackElo "2012"]
[PlyCount "96"]
[EventDate "2024.08.30"]
[EventType "swiss"]
[EventCountry "USA"]
[SourceTitle "playchess.com"]
[Source "ChessBase"]
[SourceQuality "1"]
[TimeControl "5400+30"]

{[%evp 16,96,5,0,0,-1,0,-17,20,10,39,30,27,-23,-23,-34,-51,-43,-32,-27,0,0,55,60,57,56,54,27,16,19,22,21,28,-93,-92,-97,-97,-117,-110,-155,-67,-133,-122,-135,-133,-133,-133,-143,0,0,0,0,10,10,16,0,6,0,1,0,0,-51,-51,-51,-51,-51,-51,-51,-51,-51,-42,-42,-42,-51,-51,-51,-51,-51,-51,-51,-18,-18,-18]} 1. d4 {[%emt 0:07:31]} d5 {[%emt 0:00:02]} 2. Nf3 {[%emt 0:00:11]} Nf6 {[%emt 0:00:05]} 3. c4 {[%emt 0:00:30]} c6 {[%emt 0:00:01]} 4. Nc3 {[%emt 0:00:13]} dxc4 {[%emt 0:00:01]} 5. a4 {[%emt 0:00:18]} Bf5 {[%emt 0:00:02]} 6. e3 {[%emt 0:00:42]} e6 {[%emt 0:00:00]} 7. Bxc4 {[%emt 0:00:08]} Bb4 {[%emt 0:00:19]} 8. O-O {[%emt 0:00:10]} O-O {[%emt 0:00:48]} 9. Bd2 {[%emt 0:04:59]} a5 {[%emt 0:02:29]} 10. Qe2 {[%emt 0:02:54]} Nbd7 {[%emt 0:03:32][%cal Bb8d7,Bd7b6,Bb6d5][%mdl 32]} 11. Rac1 {[%emt 0:01:27]} Nb6 {[%emt 0:03:53]} 12. Bb3 {[%emt 0:00:33]} Nbd5 {[%emt 0:11:45]} 13. Ne5 {[%emt 0:06:46]} Bd6 {[%emt 0:10:40]} 14. Kh1 {[%emt 0:27:37]} (14. f3 $142) 14... Qb6 $11 {[%emt 0:22:48]} 15. Nc4 {[%emt 0:12:43]} Qxb3 {[%emt 0:04:36]} 16. Nxd6 {[%emt 0:00:06]} Bg6 {[%emt 0:01:20]} 17. e4 {[%emt 0:06:30]} Nxc3 {[%emt 0:05:41]} 18. bxc3 {[%emt 0:06:56]} Qxa4 {[%emt 0:08:59]} (18... Rfd8 $11) 19. Ra1 $14 {[%emt 0:08:17]} Qc2 {[%emt 0:02:25][%cal Rf6e4]} 20. Rfc1 {[%emt 0:00:08]} Qb2 {[%emt 0:00:36][%cal Of6e4] ...Nxe4! is the strong threat.} 21. f3 {[%emt 0:04:46] Black must now prevent Nc4.} (21. Rcb1 $5 Qc2 $8 22. f3 $16) 21... Qb6 {[%emt 0:06:34]} 22. Rcb1 {[%emt 0:00:12]} Qc7 {[%emt 0:01:07]} 23. Nxb7 {[%emt 0:00:49]} (23. Rxb7 Qxd6 24. e5 Qd8 25. exf6 Qxf6 $15) 23... Nd7 $1 {[%emt 0:00:38]} 24. g3 {[%emt 0:04:28] [#]} (24. Qc4 $11 {keeps the balance.}) 24... Rfb8 $1 $17 {[%emt 0:01:42]} 25. Nc5 {[%emt 0:00:22]} Nxc5 {[%emt 0:00:58]} 26. Rxb8+ {[%emt 0:00:25]} Qxb8 {[%emt 0:00:52]} ({Inferior is} 26... Rxb8 27. Bf4 Qb7 (27... e5 $2 28. Bxe5 Qb6 29. Bxb8 $18) 28. Bxb8 (28. dxc5 Ra8 $17) 28... Nxe4 (28... Nb3 $2 29. Rb1 $18) 29. Be5 (29. fxe4 Qxb8 30. Qd3 Qa7 $11) (29. Rxa5 Nxc3 30. Qe1 Nd5 $11) 29... Nxc3 30. Qd2 $14) 27. dxc5 {[%emt 0:00:22] [#]} a4 {[%emt 0:05:21]} (27... Qb2 $1 $17 {[%cal Rb2a1]} 28. Qe1 e5) 28. Bf4 {[%emt 0:01:49]} ({White should try} 28. Qc4 $15) 28... e5 {[%emt 0:00:16]} 29. Bc1 {[%emt 0:00:51]} f6 {[%emt 0:01:21]} 30. Qd3 {[%emt 0:01:57]} Bf7 {[%emt 0:03:12]} 31. Ba3 {[%emt 0:00:28]} Qb5 {[%emt 0:01:03]} ({Better is} 31... Qb3 $17 {Threatens to win with ...Be6.} 32. g4 Be6) 32. Qxb5 $11 {[%emt 0:00:34]} cxb5 {[%emt 0:03:24][%mdl 4096] Endgame. KRB-KRB} 33. Rd1 $1 {[%emt 0:00:04] Inhibits Rd8.} Be6 {[%emt 0:00:00]} 34. Kg2 {[%emt 0:00:05]} Kf7 {[%emt 0:00:00]} 35. Kf2 {[%emt 0:00:01]} Rc8 {[%emt 0:00:00]} 36. Ke3 {[%emt 0:00:06]} Rc7 {[%emt 0:00:00]} 37. Rd2 {[%emt 0:01:31]} Rd7 {[%emt 0:00:00]} 38. Rd6 {[%emt 0:00:51]} ({White should play} 38. c6 $11 Rxd2 39. Kxd2) 38... Rxd6 $15 {[%emt 0:00:34]} 39. cxd6 {[%emt 0:00:01] KB-KB} Ke8 {[%emt 0:00:07]} 40. Bb4 {[%emt 0:00:42]} Kd7 {[%emt 0:00:30]} 41. f4 {[%emt 0:00:19]} g6 {[%emt 0:00:34]} 42. Kf3 {[%emt 0:00:54]} h5 {[%emt 0:00:24]} 43. fxe5 {[%emt 0:00:26]} fxe5 {[%emt 0:00:01]} 44. Ke3 {[%emt 0:00:15]} g5 {[%emt 0:01:37]} 45. Kd3 {[%emt 0:00:22]} Bc4+ {[%emt 0:00:34]} 46. Ke3 {[%emt 0:00:01]} Ke6 {[%emt 0:00:52]} 47. h4 {[%emt 0:00:41]} g4 {[%emt 0:00:34]} 48. Kd2 {[%emt 0:00:11]} Kd7 {[%emt 0:00:26] Weighted Error Value: White=0.13 (very precise) /Black=0.12 (very precise) .  Mistake:       	White=4     	Black=3      Inaccurate:     	White=1     	Black=4      OK:         	White=17    	Black=16     Best:        	White=2     	Black=1      Strong:       	White=1     	Black=2} 1/2-1/2